lending/lending_fUSD_20250131
["ID","MTS","AMOUNT","RATE_DAILY","PERIOD"]
[351068002,1738323080406,-675.93,0.00016986,2]
[351068003,1738323080415,-500.0,0.00016986,2]
[351068004,1738323080423,-517.89,0.00016986,2]
[351068005,1738323080432,-500.0,0.00016986,2]
[351068006,1738323080442,-1524.37,0.00016986,2]
[351068007,1738323080450,-952.99,0.00016986,2]
[351068008,1738323080459,-500.0,0.00016986,2]
[351068009,1738323080468,-500.0,0.00016986,2]
[351068010,1738323080477,-1065.27,0.00016986,2]
[351068011,1738323080486,-500.0,0.00016986,2]
[351068012,1738323080496,-540.49,0.00016986,2]
[351068013,1738323080505,-1066.82,0.00016986,2]
[351068014,1738323080513,-500.0,0.00016986,2]
[351068015,1738323080522,-660.13,0.00016986,2]
[351068016,1738323080532,-2110.08,0.00016986,2]
[351068017,1738323080541,-500.0,0.00016986,2]
[351068018,1738323080550,-644.10859168,0.00016986,2]
[351068019,1738323080560,-500.0,0.00016986,2]
[351068020,1738323080569,-500.0,0.00016986,2]
[351068021,1738323080578,-872.44,0.00016986,2]
[351068022,1738323080587,-500.0,0.00016986,2]
[351068023,1738323080596,-500.0,0.00016986,2]
[351068024,1738323080606,-500.0,0.00016986,2]
[351068025,1738323080615,-1188.82,0.00016986,2]
[351068026,1738323080623,-500.0,0.00016986,2]
[351068027,1738323080632,-2212.75,0.00016986,2]
[351068028,1738323080641,-500.0,0.00016986,2]
[351068029,1738323080650,-500.0,0.00016986,2]
[351068030,1738323080660,-2571.72,0.00016986,2]
[351068031,1738323080669,-500.0,0.00016986,2]
[351068032,1738323080678,-500.0,0.00016986,2]
[351068033,1738323080687,-1396.67,0.00016986,2]
[351068034,1738323080696,-2264.19,0.00016986,2]
[351068035,1738323080705,-500.0,0.00016986,2]
[351068036,1738323080714,-615.04,0.00016986,2]
[351068037,1738323080723,-500.0,0.00016986,2]
[351068038,1738323080732,-546.69586472,0.00016986,2]
[351068039,1738323080741,-1486.69,0.00016986,2]
[351068040,1738323080750,-500.0,0.00016986,2]
[351068041,1738323080759,-1434.53,0.00016986,2]
[351068042,1738323080769,-500.0,0.00016986,2]
[351068043,1738323080779,-4002.22,0.00016986,2]
[351068044,1738323080789,-500.0,0.00016986,2]
[351068045,1738323080798,-500.0,0.00016986,2]
[351068046,1738323080807,-842.74,0.00016986,2]
[351068047,1738323080817,-500.0,0.00016986,2]
[351068048,1738323080826,-1857.52,0.00016986,2]
[351068049,1738323080835,-500.0,0.00016986,2]
[351068050,1738323080845,-1874.3,0.00016986,2]
[351068051,1738323080854,-500.0,0.00016986,2]
[351068052,1738323080863,-500.0,0.00016986,2]
[351068053,1738323080872,-500.0,0.00016986,2]
[351068054,1738323080881,-2209.64,0.00016986,2]
[351068055,1738323080890,-1744.69,0.00016986,2]
[351068056,1738323080899,-500.0,0.00016986,2]
[351068057,1738323080910,-500.0,0.00016986,2]
[351068058,1738323080919,-500.0,0.00016986,2]
[351068059,1738323080929,-1162.31,0.00016986,2]
[351068060,1738323080938,-2054.43,0.00016986,2]
[351068061,1738323080947,-500.0,0.00016986,2]
[351068062,1738323080957,-500.0,0.00016986,2]
[351068063,1738323080966,-500.0,0.00016986,2]
[351068064,1738323080976,-1690.08,0.00016986,2]
[351068065,1738323080987,-500.0,0.00016986,2]
[351068066,1738323080999,-2453.26,0.00016986,2]
[351068067,1738323081009,-2088.93,0.00016986,2]
[351068068,1738323081019,-500.0,0.00016986,2]
[351068069,1738323081029,-500.0,0.00016986,2]
[351068070,1738323081039,-1384.15,0.00016986,2]
[351068071,1738323081048,-2748.88,0.00016986,2]
[351068072,1738323081057,-500.0,0.00016986,2]
[351068073,1738323081067,-157.9139225,0.00016986,2]
[351068074,1738323081077,-500.0,0.00016986,2]
[351068075,1738323081087,-1157.73,0.00016986,2]
[351068076,1738323081096,-500.0,0.00016986,2]
[351068077,1738323081106,-500.0,0.00016986,2]
[351068078,1738323081115,-500.0,0.00016986,2]
[351068079,1738323081124,-500.0,0.00016986,2]
[351068080,1738323081133,-936.11,0.00016986,2]
[351068081,1738323081142,-500.0,0.00016986,2]
[351068082,1738323081153,-500.0,0.00016986,2]
[351068083,1738323081163,-783.32,0.00016986,2]
[351068084,1738323081172,-500.0,0.00016986,2]
[351068085,1738323081181,-823.42,0.00016986,2]
[351068086,1738323081190,-500.0,0.00016986,2]
[351068087,1738323081199,-500.0,0.00016986,2]
[351068088,1738323081208,-522.93,0.00016986,2]
[351068089,1738323081217,-500.0,0.00016986,2]
[351068090,1738323081227,-500.0,0.00016986,2]
[351068091,1738323081236,-2972.09,0.00016986,2]
[351068092,1738323081245,-500.0,0.00016986,2]
[351068093,1738323081255,-1094.11,0.00016986,2]
[351068094,1738323081264,-500.0,0.00016986,2]
[351068095,1738323081273,-1202.8,0.00016986,2]
[351068096,1738323081283,-1747.36,0.00016986,2]
[351068097,1738323081291,-500.0,0.00016986,2]
[351068098,1738323081300,-506.97785131,0.00016986,2]
[351068099,1738323081310,-1325.09,0.00016986,2]
[351068100,1738323081319,-500.0,0.00016986,2]
[351068101,1738323081328,-500.0,0.00016986,2]
[351068102,1738323081337,-1401.57,0.00016986,2]
[351068103,1738323081346,-705.87,0.00016986,2]
[351068104,1738323081355,-959.86,0.00016986,2]
[351068105,1738323081364,-598.63,0.00016986,2]
[351068106,1738323081373,-500.0,0.00016986,2]
[351068107,1738323081382,-500.0,0.00016986,2]
[351068108,1738323081392,-500.0,0.00016986,2]
[351068109,1738323081401,-500.0,0.00016986,2]
[351068110,1738323081411,-1400.54,0.00016986,2]
[351068111,1738323081420,-1501.98,0.00016986,2]
[351068112,1738323081429,-1280.35,0.00016986,2]
[351068113,1738323081439,-1680.19,0.00016986,2]
[351068114,1738323081447,-536.6,0.00016986,2]
[351068115,1738323081457,-500.0,0.00016986,2]
[351068116,1738323081466,-526.79,0.00016986,2]
[351068117,1738323081475,-1004.99,0.00016986,2]
[351068118,1738323081484,-1188.35,0.00016986,2]
[351068119,1738323081493,-529.21,0.00016986,2]
[351068120,1738323081503,-1116.16,0.00016986,2]
[351068121,1738323081512,-500.0,0.00016986,2]
[351068122,1738323081521,-1399.48,0.00016986,2]
[351068123,1738323081530,-1496.14,0.00016986,2]
[351068124,1738323081539,-500.0,0.00016986,2]
[351068125,1738323081548,-1080.75,0.00016986,2]
[351068126,1738323081557,-920.99,0.00016986,2]
[351068127,1738323081566,-500.0,0.00016986,2]
[351068128,1738323081575,-364.32141637,0.00016986,2]
[351068129,1738323081584,-500.0,0.00016986,2]
[351068130,1738323081593,-500.0,0.00016986,2]
[351068131,1738323081602,-524.05,0.00016986,2]
[351068132,1738323081611,-500.0,0.00016986,2]
[351068133,1738323081620,-917.77,0.00016986,2]
[351068134,1738323081628,-579.08028782,0.00016986,2]
[351068135,1738323081638,-1066.06,0.00016986,2]
[351068136,1738323081647,-500.0,0.00016986,2]
[351068137,1738323081659,-1221.67,0.00016986,2]
[351068138,1738323081668,-715.06,0.00016986,2]
[351068139,1738323081678,-599.94,0.00016986,2]
[351068140,1738323081687,-543.14,0.00016986,2]
[351068141,1738323081696,-2242.55,0.00016986,2]
[351068142,1738323081705,-1491.37,0.00016986,2]
[351068143,1738323081714,-500.0,0.00016986,2]
[351068144,1738323081723,-967.53,0.00016986,2]
[351068145,1738323081733,-226.21882926,0.00016986,2]
[351068146,1738323081742,-2304.6,0.00016986,2]
[351068147,1738323081751,-500.0,0.00016986,2]
[351068148,1738323081761,-500.0,0.00016986,2]
[351068149,1738323081770,-674.76,0.00016986,2]
[351068150,1738323081779,-691.34,0.00016986,2]
[351068151,1738323081922,-533.79,0.00016986,2]
[351068152,1738323081932,-500.0,0.00016986,2]
[351068153,1738323081941,-655.5,0.00016986,2]
[351068154,1738323081951,-500.0,0.00016986,2]
[351068155,1738323081960,-927.88,0.00016986,2]
[351068156,1738323081969,-500.0,0.00016986,2]
[351068157,1738323081978,-500.0,0.00016986,2]
[351068158,1738323081988,-500.0,0.00016986,2]
[351068159,1738323081999,-1225.27,0.00016986,2]
[351068160,1738323082008,-1232.82,0.00016986,2]
[351068161,1738323082017,-500.0,0.00016986,2]
[351068162,1738323082026,-500.0,0.00016986,2]
[351068163,1738323082037,-660.11,0.00016986,2]
[351068164,1738323082047,-2677.1,0.00016986,2]
[351068165,1738323082056,-500.0,0.00016986,2]
[351068166,1738323082065,-2095.21,0.00016986,2]
[351068167,1738323082076,-500.0,0.00016986,2]
[351068168,1738323082085,-1904.55,0.00016986,2]
[351068169,1738323082094,-500.0,0.00016986,2]
[351068170,1738323082103,-500.0,0.00016986,2]
[351068171,1738323082113,-545.29543799,0.00016986,2]
[351068172,1738323082125,-1345.25,0.00016986,2]
[351068173,1738323082135,-799.53,0.00016986,2]
[351068174,1738323082145,-500.0,0.00016986,2]
[351068175,1738323082156,-1324.34,0.00016986,2]
[351068176,1738323082166,-503.55064278,0.00016986,2]
[351068177,1738323082175,-459.27601661,0.00016986,2]
[351068178,1738323082184,-500.0,0.00016986,2]
[351068179,1738323082194,-500.0,0.00016986,2]
[351068180,1738323082203,-500.0,0.00016986,2]
[351068181,1738323082213,-453.91465168,0.00016986,2]
[351068182,1738323082222,-500.0,0.00016986,2]
[351068183,1738323082231,-1071.62,0.00016986,2]
[351068184,1738323082240,-500.0,0.00016986,2]
[351068185,1738323082250,-500.0,0.00016986,2]
[351068186,1738323082258,-500.0,0.00016986,2]
[351068187,1738323082267,-500.0,0.00016986,2]
[351068188,1738323082276,-799.05,0.00016986,2]
[351068189,1738323082285,-561.73381974,0.00016986,2]
[351068190,1738323082294,-655.67,0.00016986,2]
[351068191,1738323082303,-500.0,0.00016986,2]
[351068192,1738323082313,-500.0,0.00016986,2]
[351068193,1738323082322,-4098.85,0.00016986,2]
[351068194,1738323082332,-1415.06,0.00016986,2]
[351068195,1738323082340,-924.74,0.00016986,2]
[351068196,1738323082349,-513.48,0.00016986,2]
[351068197,1738323082359,-639.23,0.00016986,2]
[351068198,1738323082368,-1437.94,0.00016986,2]
[351068199,1738323082376,-500.0,0.00016986,2]
[351068200,1738323082386,-718.04,0.00016986,2]
[351068201,1738323082395,-500.0,0.00016986,2]
[351068202,1738323082406,-500.0,0.00016986,2]
[351068203,1738323082415,-1179.86,0.00016986,2]
[351068204,1738323082424,-834.34,0.00016986,2]
[351068205,1738323082434,-1156.02,0.00016986,2]
[351068206,1738323082443,-500.0,0.00016986,2]
[351068207,1738323082452,-2167.27,0.00016986,2]
[351068208,1738323082461,-678.8,0.00016986,2]
[351068209,1738323082470,-934.67,0.00016986,2]
[351068210,1738323082479,-773.7,0.00016986,2]
[351068211,1738323082488,-500.0,0.00016986,2]
[351068212,1738323082497,-500.0,0.00016986,2]
[351068213,1738323082506,-762.18,0.00016986,2]
[351068214,1738323082515,-2800.41,0.00016986,2]
[351068215,1738323082524,-575.49276664,0.00016986,2]
[351068216,1738323082534,-500.0,0.00016986,2]
[351068217,1738323082543,-508.72365902,0.00016986,2]
[351068218,1738323082552,-7193.56,0.00016986,2]
[351068219,1738323082561,-842.43,0.00016986,2]
[351068220,1738323082570,-2149.68,0.00016986,2]
[351068221,1738323082579,-734.91,0.00016986,2]
[351068222,1738323082588,-2943.67,0.00016986,2]
[351068223,1738323082598,-500.0,0.00016986,2]
[351068224,1738323082607,-500.0,0.00016986,2]
[351068225,1738323082616,-851.72,0.00016986,2]
[351068226,1738323082625,-1288.98,0.00016986,2]
[351068227,1738323082633,-500.0,0.00016986,2]
[351068228,1738323082642,-500.0,0.00016986,2]
[351068229,1738323082651,-1500.88,0.00016986,2]
[351068230,1738323082663,-500.0,0.00016986,2]
[351068231,1738323082672,-500.0,0.00016986,2]
[351068232,1738323082681,-948.46,0.00016986,2]
[351068233,1738323082689,-1329.35,0.00016986,2]
[351068234,1738323082698,-500.0,0.00016986,2]
[351068235,1738323082707,-3834.64,0.00016986,2]
[351068236,1738323082717,-500.0,0.00016986,2]
[351068237,1738323082726,-500.0,0.00016986,2]
[351068238,1738323082735,-924.07,0.00016986,2]
[351068239,1738323082744,-617.7397152,0.00016986,2]
[351068240,1738323082753,-500.0,0.00016986,2]
[351068241,1738323082762,-1040.64,0.00016986,2]
[351068242,1738323082772,-500.0,0.00016986,2]
[351068243,1738323082782,-500.0,0.00016986,2]
[351068244,1738323082791,-500.0,0.00016986,2]
[351068245,1738323082801,-1562.87,0.00016986,2]
[351068246,1738323082812,-500.0,0.00016986,2]
[351068247,1738323082822,-1264.17,0.00016986,2]
[351068248,1738323082831,-500.0,0.00016986,2]
[351068249,1738323082840,-1799.72,0.00016986,2]
[351068250,1738323082849,-500.0,0.00016986,2]
[351068251,1738323082859,-6544.06,0.00016986,2]
[351068252,1738323082869,-1156.79,0.00016986,2]
[351068253,1738323082879,-4272.8,0.00016986,2]
[351068254,1738323082888,-964.18,0.00016986,2]
[351068255,1738323082899,-500.0,0.00016986,2]
[351068256,1738323082909,-5005.42,0.00016986,2]
[351068257,1738323082919,-500.0,0.00016986,2]
[351068258,1738323082928,-500.0,0.00016986,2]
[351068259,1738323082937,-7290.56,0.00016986,2]
[351068260,1738323082946,-1106.15,0.00016986,2]
[351068261,1738323082955,-615.59,0.00016986,2]
[351068262,1738323082964,-3367.77,0.00016986,2]
[351068263,1738323082974,-512.37741203,0.00016986,2]
[351068264,1738323082982,-2830.59,0.00016986,2]
[351068265,1738323082992,-500.0,0.00016986,2]
[351068266,1738323083005,-820.23,0.00016986,2]
[351068267,1738323083014,-630.22,0.00016986,2]
[351068268,1738323083023,-500.0,0.00016986,2]
[351068269,1738323083033,-500.0,0.00016986,2]
[351068270,1738323083043,-500.0,0.00016986,2]
[351068271,1738323083052,-500.0,0.00016986,2]
[351068272,1738323083062,-665.12,0.00016986,2]
[351068273,1738323083073,-509.73232581,0.00016986,2]
[351068274,1738323083082,-1258.51,0.00016986,2]
[351068275,1738323083091,-1775.32,0.00016986,2]
[351068276,1738323083100,-3871.59,0.00016986,2]
[351068277,1738323083109,-1762.27,0.00016986,2]
[351068278,1738323083119,-1387.06,0.00016986,2]
[351068279,1738323083129,-1539.71,0.00016986,2]
[351068280,1738323083138,-500.0,0.00016986,2]
[351068281,1738323083148,-1371.01,0.00016986,2]
[351068282,1738323083159,-511.57728674,0.00016986,2]
[351068283,1738323083168,-962.21,0.00016986,2]
[351068284,1738323083178,-1636.23,0.00016986,2]
[351068285,1738323083187,-710.8,0.00016986,2]
[351068286,1738323083196,-500.0,0.00016986,2]
[351068287,1738323083206,-500.0,0.00016986,2]
[351068288,1738323083226,-1387.02,0.00016986,2]
[351068289,1738323083235,-500.0,0.00016986,2]
[351068290,1738323083245,-1380.28,0.00016986,2]
[351068291,1738323083254,-1456.65,0.00016986,2]
[351068292,1738323083264,-1906.65,0.00016986,2]
[351068293,1738323083274,-1067.94,0.00016986,2]
[351068294,1738323083283,-500.0,0.00016986,2]
[351068295,1738323083293,-3531.48,0.00016986,2]
[351068296,1738323083302,-500.86,0.00016986,2]
[351068297,1738323083312,-500.0,0.00016986,2]
[351068298,1738323083321,-1186.73,0.00016986,2]
[351068299,1738323083330,-500.0,0.00016986,2]
[351068300,1738323083339,-1411.37,0.00016986,2]
[351068301,1738323083348,-509.93,0.00016986,2]
[351068302,1738323083357,-2122.9,0.00016986,2]
[351068303,1738323083367,-902.27,0.00016986,2]
[351068304,1738323083376,-2839.89,0.00016986,2]
[351068305,1738323083386,-1169.81,0.00016986,2]
[351068306,1738323083395,-500.0,0.00016986,2]
[351068307,1738323083404,-2045.77,0.00016986,2]
[351068308,1738323083416,-845.02,0.00016986,2]
[351068309,1738323083425,-2892.95,0.00016986,2]
[351068310,1738323083434,-500.0,0.00016986,2]
[351068311,1738323083443,-1131.85,0.00016986,2]
[351068312,1738323083453,-3027.76,0.00016986,2]
[351068313,1738323083463,-4851.36,0.00016986,2]
[351068314,1738323083472,-1718.8,0.00016986,2]
[351068315,1738323083482,-2594.05,0.00016986,2]
[351068316,1738323083491,-1324.51,0.00016986,2]
[351068317,1738323083502,-1106.09,0.00016986,2]
[351068318,1738323083511,-1337.35,0.00016986,2]
[351068319,1738323083520,-500.0,0.00016986,2]
[351068320,1738323083530,-949.11,0.00016986,2]
[351068321,1738323083539,-500.0,0.00016986,2]
[351068322,1738323083548,-1261.33,0.00016986,2]
[351068323,1738323083558,-500.0,0.00016986,2]
[351068324,1738323083567,-710.62,0.00016986,2]
[351068325,1738323083577,-500.0,0.00016986,2]
[351068326,1738323083587,-705.09,0.00016986,2]
[351068327,1738323083596,-650.7,0.00016986,2]
[351068328,1738323083606,-500.0,0.00016986,2]
[351068329,1738323083615,-500.0,0.00016986,2]
[351068330,1738323083626,-742.48,0.00016986,2]
[351068331,1738323083635,-9206.65,0.00016986,2]
[351068332,1738323083644,-2364.34,0.00016986,2]
[351068333,1738323083654,-1730.79,0.00016986,2]
[351068334,1738323083667,-2632.89,0.00016986,2]
[351068335,1738323083676,-500.0,0.00016986,2]
[351068336,1738323083685,-500.0,0.00016986,2]
[351068337,1738323083694,-994.44,0.00016986,2]
[351068338,1738323083704,-2217.98,0.00016986,2]
[351068339,1738323083713,-1185.07,0.00016986,2]
[351068340,1738323083722,-2299.57,0.00016986,2]
[351068341,1738323083732,-754.96,0.00016986,2]
[351068342,1738323083741,-637.68,0.00016986,2]
[351068343,1738323083751,-1695.38,0.00016986,2]
[351068344,1738323083760,-959.09,0.00016986,2]
[351068345,1738323083769,-1576.65,0.00016986,2]
[351068346,1738323083779,-1408.79,0.00016986,2]
[351068347,1738323083788,-3752.37,0.00016986,2]
[351068348,1738323083797,-1401.32,0.00016986,2]
[351068349,1738323083807,-1087.69,0.00016986,2]
[351068350,1738323083816,-989.74,0.00016986,2]
[351068351,1738323083825,-500.0,0.00016986,2]
[351068352,1738323083834,-500.0,0.00016986,2]
[351068353,1738323083843,-500.0,0.00016986,2]
[351068354,1738323083852,-2515.21,0.00016986,2]
[351068355,1738323083862,-647.13,0.00016986,2]
[351068356,1738323083871,-2597.85,0.00016986,2]
[351068357,1738323084037,-2757.06,0.00016986,2]
[351068358,1738323084060,-1622.36,0.00016986,2]
[351068359,1738323084069,-1810.3,0.00016986,2]
[351068360,1738323084080,-909.1,0.00016986,2]
[351068361,1738323084089,-8215.37,0.00016986,2]
[351068362,1738323084098,-2894.94,0.00016986,2]
[351068363,1738323084107,-2103.99,0.00016986,2]
[351068364,1738323084116,-757.69,0.00016986,2]
[351068365,1738323084125,-4454.49,0.00016986,2]
[351068366,1738323084135,-3861.01,0.00016986,2]
[351068367,1738323084143,-688.07,0.00016986,2]
[351068368,1738323084153,-500.0,0.00016986,2]
[351068369,1738323084169,-2025.17,0.00016986,2]
[351068370,1738323084179,-500.0,0.00016986,2]
[351068371,1738323084188,-3606.29,0.00016986,2]
[351068372,1738323084198,-3907.41,0.00016986,2]
[351068373,1738323084207,-500.0,0.00016986,2]
[351068374,1738323084218,-500.0,0.00016986,2]
[351068375,1738323084228,-2440.37,0.00016986,2]
[351068376,1738323084238,-1745.49,0.00016986,2]
[351068377,1738323084248,-506.55735995,0.00016986,2]
[351068378,1738323084258,-5548.15,0.00016986,2]
[351068379,1738323084268,-150.96184877,0.00016986,2]
[351068380,1738323084278,-3752.67,0.00016986,2]
[351068381,1738323084288,-1435.49,0.00016986,2]
[351068382,1738323084297,-1082.67,0.00016986,2]
[351068383,1738323084306,-3168.71,0.00016986,2]
[351068384,1738323084317,-2282.44,0.00016986,2]
[351068385,1738323084325,-760.62,0.00016986,2]
[351068386,1738323084335,-1080.31,0.00016986,2]
[351068387,1738323084344,-941.91,0.00016986,2]
[351068388,1738323084353,-500.0,0.00016986,2]
[351068389,1738323084363,-2947.86,0.00016986,2]
[351068390,1738323084373,-1273.21,0.00016986,2]
[351068391,1738323084384,-5608.95,0.00016986,2]
[351068392,1738323084393,-3988.77,0.00016986,2]
[351068393,1738323084406,-4353.52,0.00016986,2]
[351068394,1738323084420,-943.25,0.00016986,2]
[351068395,1738323084435,-506.91,0.00016986,2]
[351068396,1738323084445,-500.0,0.00016986,2]
[351068397,1738323084455,-500.0,0.00016986,2]
[351068398,1738323084464,-1595.96,0.00016986,2]
[351068399,1738323084473,-3722.14,0.00016986,2]
[351068400,1738323084482,-500.0,0.00016986,2]
[351068401,1738323084492,-500.0,0.00016986,2]
[351068402,1738323084501,-500.0,0.00016986,2]
[351068403,1738323084511,-500.0,0.00016986,2]
[351068404,1738323084521,-1683.72,0.00016986,2]
[351068405,1738323084531,-500.0,0.00016986,2]
[351068406,1738323084540,-3515.95,0.00016986,2]
[351068407,1738323084550,-2978.69,0.00016986,2]
[351068408,1738323084559,-667.8,0.00016986,2]
[351068409,1738323084568,-5511.82,0.00016986,2]
[351068410,1738323084577,-500.0,0.00016986,2]
[351068411,1738323084586,-500.0,0.00016986,2]
[351068412,1738323084596,-500.0,0.00016986,2]
[351068413,1738323084605,-500.0,0.00016986,2]
[351068414,1738323084614,-1007.69,0.00016986,2]
[351068415,1738323084623,-749.94,0.00016986,2]
[351068416,1738323084633,-2950.32,0.00016986,2]
[351068417,1738323084646,-3729.85,0.00016986,2]
[351068418,1738323084663,-6719.09,0.00016986,2]
[351068419,1738323084692,-832.98,0.00016986,2]
[351068420,1738323084701,-9659.28,0.00016986,2]
[351068421,1738323084711,-5011.36,0.00016986,2]
[351068422,1738323084720,-786.72,0.00016986,2]
[351068423,1738323084733,-609.81,0.00016986,2]
[351068424,1738323084743,-2692.52,0.00016986,2]
[351068425,1738323084753,-357.58640754,0.00016986,2]
[351068426,1738323084763,-500.0,0.00016986,2]
[351068427,1738323084773,-1717.37,0.00016986,2]
[351068428,1738323084783,-16283.95,0.00016986,2]
[351068429,1738323084793,-8168.26,0.00016986,2]
[351068430,1738323084803,-3203.56,0.00016986,2]
[351068431,1738323084813,-1518.78,0.00016986,2]
[351068432,1738323084823,-500.0,0.00016986,2]
[351068433,1738323084833,-1472.93,0.00016986,2]
[351068434,1738323084843,-500.0,0.00016986,2]
[351068435,1738323084853,-3231.63,0.00016986,2]
[351068436,1738323084863,-9057.52,0.00016986,2]
[351068437,1738323084873,-500.0,0.00016986,2]
[351068438,1738323084883,-11928.59,0.00016986,2]
[351068439,1738323084893,-500.0,0.00016986,2]
[351068440,1738323084902,-500.0,0.00016986,2]
[351068441,1738323084917,-500.0,0.00016986,2]
[351068442,1738323084927,-5646.18,0.00016986,2]
[351068443,1738323084939,-1301.1,0.00016986,2]
[351068444,1738323084949,-530.86045638,0.00016986,2]
[351068445,1738323084960,-2474.05,0.00016986,2]
[351068446,1738323084970,-1928.27,0.00016986,2]
[351068447,1738323084982,-576.67,0.00016986,2]
[351068448,1738323084994,-500.0,0.00016986,2]
[351068449,1738323085006,-584.22,0.00016986,2]
[351068450,1738323085016,-9120.6,0.00016986,2]
[351068451,1738323085025,-697.27,0.00016986,2]
[351068452,1738323085036,-881.35,0.00016986,2]
[351068453,1738323085053,-1975.43,0.00016986,2]
[351068454,1738323085077,-1354.07,0.00016986,2]
[351068455,1738323085096,-1585.85,0.00016986,2]
[351068456,1738323085118,-1300.92,0.00016986,2]
[351068457,1738323085133,-500.0,0.00016986,2]
[351068458,1738323085153,-637.65,0.00016986,2]
[351068459,1738323085179,-500.0,0.00016986,2]
[351068460,1738323085197,-2502.21,0.00016986,2]
[351068461,1738323085216,-6551.41,0.00016986,2]
[351068462,1738323085233,-500.0,0.00016986,2]
[351068463,1738323085256,-909.21,0.00016986,2]
[351068464,1738323085271,-2979.91,0.00016986,2]
[351068465,1738323085289,-1586.17,0.00016986,2]
[351068466,1738323085302,-563.64,0.00016986,2]
[351068467,1738323085320,-500.0,0.00016986,2]
[351068468,1738323085337,-2895.59,0.00016986,2]
[351068469,1738323085354,-504.46961612,0.00016986,2]
[351068470,1738323085372,-621.00902689,0.00016986,2]
[351068471,1738323085391,-1332.96,0.00016986,2]
[351068472,1738323085413,-645.36,0.00016986,2]
[351068473,1738323085429,-2149.94,0.00016986,2]
[351068474,1738323085447,-697.01,0.00016986,2]
[351068475,1738323085463,-1981.95,0.00016986,2]
[351068476,1738323085478,-4891.31,0.00016986,2]
[351068477,1738323085494,-500.0,0.00016986,2]
[351068478,1738323085511,-4713.17,0.00017,2]
[351068479,1738323085526,-171.31,0.00017085,2]
[351068480,1738323085541,-745.56,0.00017122,2]
[351068481,1738323085556,-1741.54816647,0.00017123,2]
[351068482,1738323085570,-1814.637341,0.00017123,2]
[351068483,1738323085586,-2620.30647,0.00017123,2]
[351068484,1738323085601,-500.0,0.00017123,2]
[351068485,1738323085615,-500.0,0.00017123,2]
[351068486,1738323085630,-646.62,0.00017123,2]
[351068487,1738323085645,-500.0,0.00017123,2]
[351068488,1738323085664,-1021.11,0.00017123,2]
[351068489,1738323085678,-500.0,0.00017123,2]
[351068490,1738323085692,-500.0,0.00017123,2]
[351068491,1738323085708,-864.03,0.00017123,2]
[351068492,1738323085722,-500.0,0.00017123,2]
[351068493,1738323085738,-514.2,0.00017123,2]
[351068494,1738323085753,-625.68,0.00017123,2]
[351068495,1738323085768,-500.0,0.00017123,2]
[351068496,1738323085783,-500.0,0.00017123,2]
[351068497,1738323085797,-500.0,0.00017123,2]
[351068498,1738323085811,-500.0,0.00017123,2]
[351068499,1738323085826,-500.0,0.00017123,2]
[351068500,1738323085841,-720.29,0.00017123,2]
[351068501,1738323085855,-627.41,0.00017123,2]